[Event "Titled Tuesday Blitz April 18 Late 2023"]
[White "Bartel, Mateusz"]
[Black "Vachier-Lagrave, Maxime"]
[WhiteFideId "1112635"]
[BlackFideId "623539"]
[WhiteElo "2521"]
[BlackElo "2740"]
[Result "0-1"]
[Round "04"]
[TimeControl "180+2"]
[Date "2023.04.18"]
[WhiteClock "0:00:04"]
[BlackClock "0:00:34"]

1. e4 {[%clk 0:03:00]}  c5 {[%clk 0:02:52]} 2. Nf3 {[%clk 0:02:59]}  Nc6 {[%clk 0:02:51]} 3. Nc3 {[%clk 0:02:57]}  e6 {[%clk 0:02:47]} 4. d4 {[%clk 0:02:54]}  cxd4 {[%clk 0:02:48]} 5. Nxd4 {[%clk 0:02:55]}  Nf6 {[%clk 0:02:49]} 6. a3 {[%clk 0:02:54]}  d6 {[%clk 0:02:47]} 7. g3 {[%clk 0:02:51]}  a6 {[%clk 0:02:40]} 8. Bg2 {[%clk 0:02:51]}  Bd7 {[%clk 0:02:40]} 9. O-O {[%clk 0:02:50]}  Rc8 {[%clk 0:02:38]} 10. Nb3 {[%clk 0:02:47]}  h5 {[%clk 0:02:34]} 11. h3 {[%clk 0:02:41]}  Be7 {[%clk 0:02:31]} 12. a4 {[%clk 0:02:38]}  Ne5 {[%clk 0:02:31]} 13. a5 {[%clk 0:02:27]}  Nc4 {[%clk 0:02:30]} 14. f4 {[%clk 0:02:22]}  e5 {[%clk 0:02:20]} 15. Rf2 {[%clk 0:02:06]}  b5 {[%clk 0:02:18]} 16. axb6 {[%clk 0:01:30]}  Qxb6 {[%clk 0:02:16]} 17. Qf3 {[%clk 0:01:16]}  O-O {[%clk 0:01:51]} 18. f5 {[%clk 0:01:09]}  Bc6 {[%clk 0:01:43]} 19. g4 {[%clk 0:00:40]}  hxg4 {[%clk 0:01:43]} 20. hxg4 {[%clk 0:00:41]}  Nh7 {[%clk 0:01:40]} 21. Qg3 {[%clk 0:00:33]}  Ng5 {[%clk 0:01:28]} 22. Kh2 {[%clk 0:00:30]}  Bf6 {[%clk 0:01:21]} 23. Rf1 {[%clk 0:00:29]}  Rfd8 {[%clk 0:01:19]} 24. Qd3 {[%clk 0:00:22]}  Bb7 {[%clk 0:01:12]} 25. Kg3 {[%clk 0:00:22]}  d5 {[%clk 0:01:06]} 26. exd5 {[%clk 0:00:20]}  e4 {[%clk 0:01:06]} 27. Nxe4 {[%clk 0:00:20]}  Nxe4+ {[%clk 0:01:00]} 28. Bxe4 {[%clk 0:00:20]}  Nxb2 {[%clk 0:01:00]} 29. Bxb2 {[%clk 0:00:20]}  Bxb2 {[%clk 0:01:01]} 30. Rab1 {[%clk 0:00:19]}  Rc3 {[%clk 0:01:01]} 31. Rxb2 {[%clk 0:00:18]}  Rxd3+ {[%clk 0:01:01]} 32. cxd3 {[%clk 0:00:15]}  Bxd5 {[%clk 0:01:01]} 33. Bxd5 {[%clk 0:00:12]}  Rxd5 {[%clk 0:01:02]} 34. Rf3 {[%clk 0:00:10]}  Qc7+ {[%clk 0:00:57]} 35. Kg2 {[%clk 0:00:10]}  Qc3 {[%clk 0:00:57]} 36. Re2 {[%clk 0:00:07]}  Re5 {[%clk 0:00:51]} 37. Rxe5 {[%clk 0:00:04]}  Qxe5 {[%clk 0:00:52]} 38. d4 {[%clk 0:00:05]}  Qb5 {[%clk 0:00:49]} 39. Kg3 {[%clk 0:00:05]}  a5 {[%clk 0:00:49]} 40. Nc5 {[%clk 0:00:05]}  Qb4 {[%clk 0:00:45]} 41. Rd3 {[%clk 0:00:04]}  a4 {[%clk 0:00:46]} 42. Kf4 {[%clk 0:00:02]}  a3 {[%clk 0:00:43]} 43. Nb3 {[%clk 0:00:03]}  a2 {[%clk 0:00:43]} 44. Ke4 {[%clk 0:00:03]}  Kf8 {[%clk 0:00:38]} 45. Kd5 {[%clk 0:00:02]}  Qb7+ {[%clk 0:00:34]} 46. Kc4 {[%clk 0:00:02]}  Qxb3+ {[%clk 0:00:33]} 47. Rxb3 {[%clk 0:00:01]}  a1=Q {[%clk 0:00:33]} 48. Rb8+ {[%clk 0:00:02]}  Ke7 {[%clk 0:00:33]} 49. Rb7+ {[%clk 0:00:03]}  Kf6 {[%clk 0:00:33]} 50. Rb6+ {[%clk 0:00:04]}  Kg5 {[%clk 0:00:34]} 0-1


[Site "https://www.chess.com"]

[Event "Titled Tuesday Blitz April 18 Late 2023"]
[White "Karacsonyi, Gellert"]
[Black "Firouzja, Alireza"]
[WhiteFideId "764620"]
[BlackFideId "12573981"]
[WhiteElo "2308"]
[BlackElo "2904"]
[Result "0-1"]
[Round "04"]
[TimeControl "180+2"]
[Date "2023.04.18"]
[WhiteClock "0:00:50"]
[BlackClock "0:01:57"]

1. e4 {[%clk 0:03:00]}  c5 {[%clk 0:02:56]} 2. Nf3 {[%clk 0:03:00]}  Nc6 {[%clk 0:02:57]} 3. d4 {[%clk 0:03:00]}  cxd4 {[%clk 0:02:57]} 4. Nxd4 {[%clk 0:03:01]}  Nf6 {[%clk 0:02:54]} 5. Nc3 {[%clk 0:03:01]}  d6 {[%clk 0:02:51]} 6. Bg5 {[%clk 0:03:00]}  Bd7 {[%clk 0:02:48]} 7. Qd3 {[%clk 0:02:57]}  Rc8 {[%clk 0:02:38]} 8. O-O-O {[%clk 0:02:55]}  Qa5 {[%clk 0:02:35]} 9. Bxf6 {[%clk 0:02:37]}  gxf6 {[%clk 0:02:34]} 10. Nb3 {[%clk 0:02:18]}  Qb6 {[%clk 0:02:29]} 11. Kb1 {[%clk 0:02:11]}  Qxf2 {[%clk 0:02:27]} 12. Be2 {[%clk 0:02:01]}  Bh6 {[%clk 0:02:17]} 13. Nd5 {[%clk 0:01:43]}  Ne5 {[%clk 0:02:10]} 14. Qg3 {[%clk 0:01:19]}  Qxe2 {[%clk 0:02:07]} 15. Nd4 {[%clk 0:01:19]}  Qxe4 {[%clk 0:02:07]} 16. Rhe1 {[%clk 0:01:08]}  Qxd5 {[%clk 0:02:02]} 17. Nf5 {[%clk 0:01:09]}  Qxd1+ {[%clk 0:02:02]} 18. Rxd1 {[%clk 0:01:09]}  Bxf5 {[%clk 0:02:03]} 19. Ka1 {[%clk 0:01:03]}  Rxc2 {[%clk 0:02:03]} 20. Qb3 {[%clk 0:01:02]}  O-O {[%clk 0:02:02]} 21. Qxb7 {[%clk 0:01:01]}  Rfc8 {[%clk 0:02:02]} 22. a3 {[%clk 0:01:00]}  Be6 {[%clk 0:02:02]} 23. b3 {[%clk 0:00:51]}  f5 {[%clk 0:01:58]} 24. g3 {[%clk 0:00:50]}  Bg7 {[%clk 0:01:57]} 0-1


[Site "https://www.chess.com"]

[Event "Titled Tuesday Blitz April 18 Late 2023"]
[White "Drygalov, Andrey"]
[Black "Rasulov, Vugar"]
[WhiteFideId "24171735"]
[BlackFideId "13402390"]
[WhiteElo "2466"]
[BlackElo "2509"]
[Result "1/2-1/2"]
[Round "04"]
[TimeControl "180+2"]
[Date "2023.04.18"]
[WhiteClock "0:00:03"]
[BlackClock "0:00:03"]

1. e4 {[%clk 0:03:00]}  c5 {[%clk 0:02:59]} 2. Nf3 {[%clk 0:03:00]}  d6 {[%clk 0:03:00]} 3. Bb5+ {[%clk 0:03:00]}  Nd7 {[%clk 0:03:00]} 4. O-O {[%clk 0:03:00]}  a6 {[%clk 0:03:00]} 5. Bd3 {[%clk 0:03:00]}  Ngf6 {[%clk 0:02:59]} 6. Re1 {[%clk 0:03:00]}  b5 {[%clk 0:02:59]} 7. c4 {[%clk 0:02:58]}  g5 {[%clk 0:02:59]} 8. Nxg5 {[%clk 0:02:57]}  Ne5 {[%clk 0:02:58]} 9. Be2 {[%clk 0:02:55]}  bxc4 {[%clk 0:02:54]} 10. d4 {[%clk 0:02:41]}  cxd3 {[%clk 0:02:41]} 11. Bxd3 {[%clk 0:02:41]}  Bh6 {[%clk 0:02:18]} 12. Nc3 {[%clk 0:02:35]}  Rg8 {[%clk 0:02:12]} 13. Nf3 {[%clk 0:02:17]}  Bg4 {[%clk 0:01:40]} 14. Be2 {[%clk 0:02:17]}  Bxc1 {[%clk 0:01:39]} 15. Rxc1 {[%clk 0:02:18]}  Bxf3 {[%clk 0:01:32]} 16. Bxf3 {[%clk 0:02:17]}  Rb8 {[%clk 0:01:31]} 17. b3 {[%clk 0:02:17]}  e6 {[%clk 0:01:29]} 18. g3 {[%clk 0:02:16]}  h5 {[%clk 0:01:27]} 19. Bg2 {[%clk 0:01:34]}  h4 {[%clk 0:01:27]} 20. f4 {[%clk 0:01:13]}  Ng6 {[%clk 0:01:18]} 21. e5 {[%clk 0:01:06]}  hxg3 {[%clk 0:01:01]} 22. hxg3 {[%clk 0:01:02]}  dxe5 {[%clk 0:01:01]} 23. fxe5 {[%clk 0:00:59]}  Qxd1 {[%clk 0:00:54]} 24. Rcxd1 {[%clk 0:00:59]}  Ng4 {[%clk 0:00:55]} 25. Ne4 {[%clk 0:00:57]}  N6xe5 {[%clk 0:00:42]} 26. Nxc5 {[%clk 0:00:57]}  a5 {[%clk 0:00:42]} 27. Re4 {[%clk 0:00:23]}  Ke7 {[%clk 0:00:39]} 28. Rde1 {[%clk 0:00:23]}  f6 {[%clk 0:00:36]} 29. Na4 {[%clk 0:00:18]}  Rgc8 {[%clk 0:00:33]} 30. R4e2 {[%clk 0:00:18]}  Rb4 {[%clk 0:00:29]} 31. Rf1 {[%clk 0:00:17]}  Rd4 {[%clk 0:00:26]} 32. Bh3 {[%clk 0:00:17]}  Rh8 {[%clk 0:00:21]} 33. Bxg4 {[%clk 0:00:14]}  Rxg4 {[%clk 0:00:22]} 34. Kg2 {[%clk 0:00:14]}  Rhg8 {[%clk 0:00:16]} 35. Re3 {[%clk 0:00:15]}  Rd4 {[%clk 0:00:16]} 36. Rfe1 {[%clk 0:00:15]}  Rc8 {[%clk 0:00:15]} 37. R1e2 {[%clk 0:00:13]}  Rc1 {[%clk 0:00:15]} 38. Nc3 {[%clk 0:00:13]}  Kf7 {[%clk 0:00:13]} 39. Ne4 {[%clk 0:00:13]}  Ng4 {[%clk 0:00:10]} 40. Rf3 {[%clk 0:00:12]}  Ke7 {[%clk 0:00:09]} 41. Nf2 {[%clk 0:00:10]}  Ne5 {[%clk 0:00:07]} 42. Rfe3 {[%clk 0:00:10]}  Ra1 {[%clk 0:00:07]} 43. Ne4 {[%clk 0:00:10]}  Rdd1 {[%clk 0:00:07]} 44. Nf2 {[%clk 0:00:08]}  Rg1+ {[%clk 0:00:07]} 45. Kh2 {[%clk 0:00:09]}  Rgf1 {[%clk 0:00:07]} 46. Kg2 {[%clk 0:00:09]}  Rg1+ {[%clk 0:00:08]} 47. Kh2 {[%clk 0:00:09]}  Raf1 {[%clk 0:00:08]} 48. Re4 {[%clk 0:00:08]}  Kf7 {[%clk 0:00:07]} 49. R4e3 {[%clk 0:00:08]}  Kg6 {[%clk 0:00:07]} 50. a3 {[%clk 0:00:06]}  Ra1 {[%clk 0:00:07]} 51. b4 {[%clk 0:00:06]}  axb4 {[%clk 0:00:06]} 52. axb4 {[%clk 0:00:07]}  Rab1 {[%clk 0:00:07]} 53. b5 {[%clk 0:00:07]}  Rgc1 {[%clk 0:00:06]} 54. Kg2 {[%clk 0:00:03]}  Rg1+ {[%clk 0:00:05]} 55. Kh2 {[%clk 0:00:03]}  Rgc1 {[%clk 0:00:06]} 56. Kg2 {[%clk 0:00:03]}  Rxb5 {[%clk 0:00:06]} 57. Nh3 {[%clk 0:00:04]}  Rbb1 {[%clk 0:00:06]} 58. Nf4+ {[%clk 0:00:04]}  Kf5 {[%clk 0:00:06]} 59. Nh3 {[%clk 0:00:03]}  Kg6 {[%clk 0:00:04]} 60. Rf2 {[%clk 0:00:04]}  Rc4 {[%clk 0:00:03]} 61. Nf4+ {[%clk 0:00:04]}  Kf7 {[%clk 0:00:03]} 62. Rfe2 {[%clk 0:00:04]}  Rcc1 {[%clk 0:00:04]} 63. Nh3 {[%clk 0:00:05]}  Ke7 {[%clk 0:00:03]} 64. Ra3 {[%clk 0:00:04]}  Ra1 {[%clk 0:00:03]} 65. Rxa1 {[%clk 0:00:03]}  Rxa1 {[%clk 0:00:04]} 66. Rb2 {[%clk 0:00:04]}  Nc4 {[%clk 0:00:04]} 67. Rb7+ {[%clk 0:00:04]}  Kd6 {[%clk 0:00:05]} 68. Nf4 {[%clk 0:00:03]}  e5 {[%clk 0:00:05]} 69. Nh5 {[%clk 0:00:04]}  f5 {[%clk 0:00:05]} 70. Rf7 {[%clk 0:00:04]}  Rc1 {[%clk 0:00:03]} 71. Ng7 {[%clk 0:00:04]}  Ne3+ {[%clk 0:00:03]} 72. Kf2 {[%clk 0:00:04]}  Ng4+ {[%clk 0:00:02]} 73. Ke2 {[%clk 0:00:03]}  Rc2+ {[%clk 0:00:02]} 74. Kd3 {[%clk 0:00:01]}  Rg2 {[%clk 0:00:03]} 75. Nxf5+ {[%clk 0:00:01]}  Ke6 {[%clk 0:00:04]} 76. Rf8 {[%clk 0:00:02]}  Nf2+ {[%clk 0:00:02]} 77. Ke3 {[%clk 0:00:02]}  Nd1+ {[%clk 0:00:02]} 78. Kf3 {[%clk 0:00:02]}  Rf2+ {[%clk 0:00:03]} 79. Kg4 {[%clk 0:00:02]}  Rxf5 {[%clk 0:00:03]} 80. Re8+ {[%clk 0:00:02]}  Kf6 {[%clk 0:00:04]} 81. Rf8+ {[%clk 0:00:02]}  Kg6 {[%clk 0:00:04]} 82. Rg8+ {[%clk 0:00:02]}  Kf6 {[%clk 0:00:05]} 83. Rf8+ {[%clk 0:00:03]}  Ke6 {[%clk 0:00:04]} 84. Re8+ {[%clk 0:00:03]}  Kf6 {[%clk 0:00:03]} 85. Rf8+ {[%clk 0:00:03]} 1/2-1/2


[Site "https://www.chess.com"]

[Event "Titled Tuesday Blitz April 18 Late 2023"]
[White "Deac, Bogdan-Daniel"]
[Black "Kravtsiv, Martyn"]
[WhiteFideId "1226380"]
[BlackFideId "14113147"]
[WhiteElo "2649"]
[BlackElo "2695"]
[Result "1/2-1/2"]
[Round "04"]
[TimeControl "180+2"]
[Date "2023.04.18"]
[WhiteClock "0:00:09"]
[BlackClock "0:00:10"]

1. e4 {[%clk 0:03:00]}  e5 {[%clk 0:02:59]} 2. Nf3 {[%clk 0:03:00]}  Nc6 {[%clk 0:03:00]} 3. Bb5 {[%clk 0:03:00]}  a6 {[%clk 0:02:59]} 4. Bxc6 {[%clk 0:03:01]}  dxc6 {[%clk 0:02:59]} 5. Nc3 {[%clk 0:03:02]}  f6 {[%clk 0:02:56]} 6. d4 {[%clk 0:03:02]}  exd4 {[%clk 0:02:55]} 7. Qxd4 {[%clk 0:03:03]}  Qxd4 {[%clk 0:02:54]} 8. Nxd4 {[%clk 0:03:04]}  Bd7 {[%clk 0:02:53]} 9. Be3 {[%clk 0:03:04]}  O-O-O {[%clk 0:02:52]} 10. O-O-O {[%clk 0:03:04]}  b6 {[%clk 0:02:49]} 11. f3 {[%clk 0:02:59]}  Ne7 {[%clk 0:02:47]} 12. Nde2 {[%clk 0:02:53]}  Ng6 {[%clk 0:02:43]} 13. Nf4 {[%clk 0:02:50]}  Nxf4 {[%clk 0:02:41]} 14. Bxf4 {[%clk 0:02:50]}  Bb4 {[%clk 0:02:42]} 15. Ne2 {[%clk 0:02:49]}  Kb7 {[%clk 0:02:36]} 16. h4 {[%clk 0:02:38]}  Be6 {[%clk 0:02:32]} 17. Rxd8 {[%clk 0:02:21]}  Rxd8 {[%clk 0:02:31]} 18. a3 {[%clk 0:02:22]}  Be7 {[%clk 0:02:17]} 19. g4 {[%clk 0:02:11]}  Bc5 {[%clk 0:02:03]} 20. h5 {[%clk 0:01:33]}  a5 {[%clk 0:01:55]} 21. Bd2 {[%clk 0:01:28]}  Bc4 {[%clk 0:01:49]} 22. Ng3 {[%clk 0:01:10]}  a4 {[%clk 0:01:49]} 23. Rh2 {[%clk 0:00:57]}  Bd6 {[%clk 0:01:35]} 24. Rg2 {[%clk 0:00:56]}  g6 {[%clk 0:01:34]} 25. Be3 {[%clk 0:00:37]}  b5 {[%clk 0:01:30]} 26. f4 {[%clk 0:00:28]}  Re8 {[%clk 0:01:26]} 27. hxg6 {[%clk 0:00:27]}  hxg6 {[%clk 0:01:25]} 28. Rh2 {[%clk 0:00:18]}  g5 {[%clk 0:01:20]} 29. Rf2 {[%clk 0:00:18]}  Be6 {[%clk 0:01:17]} 30. Nh5 {[%clk 0:00:08]}  gxf4 {[%clk 0:01:15]} 31. Bxf4 {[%clk 0:00:07]}  Bc5 {[%clk 0:01:16]} 32. Rg2 {[%clk 0:00:05]}  Rf8 {[%clk 0:01:10]} 33. Ng7 {[%clk 0:00:05]}  Bc4 {[%clk 0:01:09]} 34. Nf5 {[%clk 0:00:05]}  Rh8 {[%clk 0:01:07]} 35. Rh2 {[%clk 0:00:05]}  Rxh2 {[%clk 0:01:06]} 36. Bxh2 {[%clk 0:00:06]}  Be2 {[%clk 0:01:05]} 37. Bf4 {[%clk 0:00:06]}  Bxg4 {[%clk 0:01:05]} 38. Kd2 {[%clk 0:00:05]}  Bh3 {[%clk 0:00:57]} 39. Kd3 {[%clk 0:00:05]}  Bf1+ {[%clk 0:00:56]} 40. Kd2 {[%clk 0:00:06]}  Bc4 {[%clk 0:00:54]} 41. Ne3 {[%clk 0:00:05]}  Be6 {[%clk 0:00:54]} 42. Kd3 {[%clk 0:00:06]}  Bf8 {[%clk 0:00:52]} 43. Nf5 {[%clk 0:00:05]}  c5 {[%clk 0:00:41]} 44. Ne3 {[%clk 0:00:05]}  Kc6 {[%clk 0:00:38]} 45. c4 {[%clk 0:00:05]}  b4 {[%clk 0:00:30]} 46. Nd5 {[%clk 0:00:04]}  f5 {[%clk 0:00:30]} 47. exf5 {[%clk 0:00:03]}  Bxf5+ {[%clk 0:00:25]} 48. Kd2 {[%clk 0:00:03]}  Be6 {[%clk 0:00:25]} 49. Ne3 {[%clk 0:00:01]}  Bg7 {[%clk 0:00:23]} 50. Kc2 {[%clk 0:00:02]}  Bd4 {[%clk 0:00:22]} 51. Kc1 {[%clk 0:00:02]}  Bf7 {[%clk 0:00:19]} 52. Nc2 {[%clk 0:00:02]}  b3 {[%clk 0:00:09]} 53. Nxd4+ {[%clk 0:00:02]}  cxd4 {[%clk 0:00:10]} 54. Be5 {[%clk 0:00:02]}  d3 {[%clk 0:00:07]} 55. c5 {[%clk 0:00:03]}  Kxc5 {[%clk 0:00:06]} 56. Bxc7 {[%clk 0:00:03]}  Kc4 {[%clk 0:00:06]} 57. Bf4 {[%clk 0:00:03]}  Be6 {[%clk 0:00:07]} 58. Bd2 {[%clk 0:00:04]}  Bd5 {[%clk 0:00:07]} 59. Bc3 {[%clk 0:00:05]}  Be6 {[%clk 0:00:08]} 60. Kd2 {[%clk 0:00:06]}  Bd5 {[%clk 0:00:08]} 61. Bb4 {[%clk 0:00:07]}  Be6 {[%clk 0:00:09]} 62. Bc3 {[%clk 0:00:08]}  Bd5 {[%clk 0:00:09]} 63. Bb4 {[%clk 0:00:09]}  Be6 {[%clk 0:00:10]} 64. Bc3 {[%clk 0:00:09]} 1/2-1/2


[Site "https://www.chess.com"]

[Event "Titled Tuesday Blitz April 18 Late 2023"]
[White "Baskakov, Egor"]
[Black "Hakobyan, Aram"]
[WhiteFideId "24197866"]
[BlackFideId "13306677"]
[WhiteElo "2212"]
[BlackElo "2584"]
[Result "0-1"]
[Round "04"]
[TimeControl "180+2"]
[Date "2023.04.18"]
[WhiteClock "0:02:36"]
[BlackClock "0:01:52"]

1. e4 {[%clk 0:03:00]}  g6 {[%clk 0:02:58]} 2. g3 {[%clk 0:03:00]}  Bg7 {[%clk 0:02:56]} 3. Bg2 {[%clk 0:03:00]}  c5 {[%clk 0:02:57]} 4. Ne2 {[%clk 0:03:00]}  Nc6 {[%clk 0:02:56]} 5. O-O {[%clk 0:03:00]}  d6 {[%clk 0:02:57]} 6. h3 {[%clk 0:02:59]}  e5 {[%clk 0:02:57]} 7. Nbc3 {[%clk 0:02:58]}  Nge7 {[%clk 0:02:57]} 8. Nd5 {[%clk 0:02:59]}  Nxd5 {[%clk 0:02:57]} 9. exd5 {[%clk 0:03:00]}  Ne7 {[%clk 0:02:57]} 10. c3 {[%clk 0:02:59]}  O-O {[%clk 0:02:57]} 11. d4 {[%clk 0:03:00]}  cxd4 {[%clk 0:02:51]} 12. cxd4 {[%clk 0:03:01]}  Nf5 {[%clk 0:02:49]} 13. dxe5 {[%clk 0:03:00]}  Bxe5 {[%clk 0:02:50]} 14. Kh2 {[%clk 0:02:57]}  Re8 {[%clk 0:02:49]} 15. Nc3 {[%clk 0:02:57]}  Nh4 {[%clk 0:02:43]} 16. f4 {[%clk 0:02:54]}  Bxc3 {[%clk 0:02:43]} 17. bxc3 {[%clk 0:02:51]}  Nxg2 {[%clk 0:02:43]} 18. Kxg2 {[%clk 0:02:52]}  Bf5 {[%clk 0:02:39]} 19. Qd4 {[%clk 0:02:50]}  Re4 {[%clk 0:02:36]} 20. Qd2 {[%clk 0:02:46]}  Qd7 {[%clk 0:02:36]} 21. Rf2 {[%clk 0:02:43]}  Bxh3+ {[%clk 0:02:35]} 22. Kh2 {[%clk 0:02:43]}  Rae8 {[%clk 0:02:31]} 23. c4 {[%clk 0:02:43]}  Qg4 {[%clk 0:02:26]} 24. Bb2 {[%clk 0:02:36]}  Re2 {[%clk 0:01:52]} 0-1


[Site "https://www.chess.com"]

[Event "Titled Tuesday Blitz April 18 Late 2023"]
[White "Xiong, Jeffery"]
[Black "Kramnik, Vladimir"]
[WhiteFideId "2047640"]
[BlackFideId "4101588"]
[WhiteElo "2726"]
[BlackElo "2712"]
[Result "1-0"]
[Round "04"]
[TimeControl "180+2"]
[Date "2023.04.18"]
[WhiteClock "0:00:34"]
[BlackClock "0:00:09"]

1. e4 {[%clk 0:03:00]}  e6 {[%clk 0:02:59]} 2. d4 {[%clk 0:03:01]}  d5 {[%clk 0:02:58]} 3. e5 {[%clk 0:03:01]}  c5 {[%clk 0:02:58]} 4. c3 {[%clk 0:03:02]}  Nc6 {[%clk 0:02:58]} 5. Nf3 {[%clk 0:03:02]}  Bd7 {[%clk 0:02:58]} 6. Be2 {[%clk 0:03:02]}  Nge7 {[%clk 0:02:58]} 7. Na3 {[%clk 0:03:02]}  cxd4 {[%clk 0:02:55]} 8. cxd4 {[%clk 0:03:03]}  Nf5 {[%clk 0:02:53]} 9. Nc2 {[%clk 0:03:04]}  Qb6 {[%clk 0:02:50]} 10. O-O {[%clk 0:03:04]}  Rc8 {[%clk 0:02:49]} 11. a3 {[%clk 0:03:03]}  Na5 {[%clk 0:02:37]} 12. Bd3 {[%clk 0:02:43]}  Nb3 {[%clk 0:02:27]} 13. Rb1 {[%clk 0:02:43]}  Bb5 {[%clk 0:02:11]} 14. Be3 {[%clk 0:02:31]}  Be7 {[%clk 0:01:50]} 15. Re1 {[%clk 0:02:24]}  Bxd3 {[%clk 0:01:46]} 16. Qxd3 {[%clk 0:02:25]}  Na5 {[%clk 0:01:44]} 17. b3 {[%clk 0:02:15]}  Qa6 {[%clk 0:01:37]} 18. Qd2 {[%clk 0:01:56]}  O-O {[%clk 0:01:36]} 19. Bg5 {[%clk 0:01:33]}  Bxg5 {[%clk 0:01:34]} 20. Nxg5 {[%clk 0:01:33]}  h6 {[%clk 0:01:31]} 21. Nf3 {[%clk 0:01:33]}  Rc7 {[%clk 0:01:25]} 22. g4 {[%clk 0:01:32]}  Ne7 {[%clk 0:01:24]} 23. Re3 {[%clk 0:01:26]}  Rfc8 {[%clk 0:01:21]} 24. Nce1 {[%clk 0:01:26]}  Nac6 {[%clk 0:01:13]} 25. b4 {[%clk 0:01:22]}  Qa4 {[%clk 0:01:01]} 26. Nd3 {[%clk 0:01:10]}  Nd8 {[%clk 0:00:55]} 27. Nc5 {[%clk 0:01:00]}  Qe8 {[%clk 0:00:54]} 28. b5 {[%clk 0:00:58]}  b6 {[%clk 0:00:54]} 29. Na6 {[%clk 0:00:58]}  Rc2 {[%clk 0:00:54]} 30. Qe1 {[%clk 0:00:59]}  Ng6 {[%clk 0:00:52]} 31. Nb4 {[%clk 0:00:58]}  R2c4 {[%clk 0:00:52]} 32. Nd3 {[%clk 0:00:58]}  Qe7 {[%clk 0:00:46]} 33. Rb3 {[%clk 0:00:51]}  Nb7 {[%clk 0:00:44]} 34. Kg2 {[%clk 0:00:50]}  Na5 {[%clk 0:00:43]} 35. Rb4 {[%clk 0:00:50]}  Nh4+ {[%clk 0:00:40]} 36. Nxh4 {[%clk 0:00:50]}  Qxh4 {[%clk 0:00:40]} 37. Rg3 {[%clk 0:00:48]}  Rxb4 {[%clk 0:00:35]} 38. Nxb4 {[%clk 0:00:49]}  Rc4 {[%clk 0:00:33]} 39. Qd2 {[%clk 0:00:49]}  h5 {[%clk 0:00:29]} 40. h3 {[%clk 0:00:48]}  hxg4 {[%clk 0:00:27]} 41. hxg4 {[%clk 0:00:48]}  Qh7 {[%clk 0:00:25]} 42. Qg5 {[%clk 0:00:43]}  Qe4+ {[%clk 0:00:22]} 43. Kh2 {[%clk 0:00:43]}  Rc8 {[%clk 0:00:18]} 44. Qd2 {[%clk 0:00:38]}  Nc4 {[%clk 0:00:17]} 45. Qc3 {[%clk 0:00:39]}  Qf4 {[%clk 0:00:16]} 46. Kg2 {[%clk 0:00:38]}  Qe4+ {[%clk 0:00:13]} 47. Kh2 {[%clk 0:00:37]}  g5 {[%clk 0:00:13]} 48. Nc6 {[%clk 0:00:37]}  Kg7 {[%clk 0:00:13]} 49. Qf3 {[%clk 0:00:34]}  Rh8+ {[%clk 0:00:13]} 50. Kg2 {[%clk 0:00:34]}  Qe1 {[%clk 0:00:12]} 51. Qf6+ {[%clk 0:00:33]}  Kg8 {[%clk 0:00:11]} 52. Ne7+ {[%clk 0:00:33]}  Kf8 {[%clk 0:00:09]} 53. Ng6+ {[%clk 0:00:34]}  Ke8 {[%clk 0:00:09]} 54. Qe7# {[%clk 0:00:34]} 1-0


[Site "https://www.chess.com"]

[Event "Titled Tuesday Blitz April 18 Late 2023"]
[White "Ibrahimli, Murad"]
[Black "Bilych, Olexiy"]
[WhiteFideId "13410229"]
[BlackFideId "14156504"]
[WhiteElo "2364"]
[BlackElo "2320"]
[Result "1-0"]
[Round "04"]
[TimeControl "180+2"]
[Date "2023.04.18"]
[WhiteClock "0:00:32"]
[BlackClock "0:00:05"]

1. Nf3 {[%clk 0:03:00]}  d5 {[%clk 0:02:59]} 2. d4 {[%clk 0:03:01]}  Nf6 {[%clk 0:02:59]} 3. c4 {[%clk 0:03:01]}  e6 {[%clk 0:02:59]} 4. g3 {[%clk 0:03:02]}  dxc4 {[%clk 0:02:57]} 5. Bg2 {[%clk 0:03:01]}  Bb4+ {[%clk 0:02:58]} 6. Nc3 {[%clk 0:03:01]}  O-O {[%clk 0:02:45]} 7. O-O {[%clk 0:03:00]}  Nc6 {[%clk 0:02:43]} 8. a3 {[%clk 0:02:45]}  Be7 {[%clk 0:02:40]} 9. e4 {[%clk 0:02:42]}  Na5 {[%clk 0:02:39]} 10. Be3 {[%clk 0:02:40]}  a6 {[%clk 0:02:37]} 11. h3 {[%clk 0:02:32]}  b5 {[%clk 0:02:33]} 12. d5 {[%clk 0:02:33]}  Bb7 {[%clk 0:02:28]} 13. dxe6 {[%clk 0:02:29]}  Nxe4 {[%clk 0:02:12]} 14. exf7+ {[%clk 0:02:28]}  Rxf7 {[%clk 0:02:12]} 15. Ne5 {[%clk 0:01:45]}  Qxd1 {[%clk 0:01:56]} 16. Rfxd1 {[%clk 0:01:36]}  Nxc3 {[%clk 0:01:56]} 17. bxc3 {[%clk 0:01:25]}  Bxg2 {[%clk 0:01:52]} 18. Kxg2 {[%clk 0:01:26]}  Rff8 {[%clk 0:01:38]} 19. a4 {[%clk 0:01:21]}  Bd6 {[%clk 0:01:32]} 20. axb5 {[%clk 0:01:14]}  axb5 {[%clk 0:01:28]} 21. Rd5 {[%clk 0:01:14]}  Bxe5 {[%clk 0:01:02]} 22. Rxe5 {[%clk 0:01:14]}  c6 {[%clk 0:01:03]} 23. Re6 {[%clk 0:01:14]}  Rfc8 {[%clk 0:00:46]} 24. Bb6 {[%clk 0:01:11]}  Kf7 {[%clk 0:00:40]} 25. Rd6 {[%clk 0:01:10]}  Nb7 {[%clk 0:00:27]} 26. Rd7+ {[%clk 0:00:55]}  Ke8 {[%clk 0:00:11]} 27. Rad1 {[%clk 0:00:56]}  Rd8 {[%clk 0:00:08]} 28. Bxd8 {[%clk 0:00:43]}  Rxd8 {[%clk 0:00:08]} 29. Rxd8+ {[%clk 0:00:39]}  Nxd8 {[%clk 0:00:08]} 30. Kf3 {[%clk 0:00:37]}  Ke7 {[%clk 0:00:08]} 31. Ke3 {[%clk 0:00:36]}  Ne6 {[%clk 0:00:07]} 32. Ra1 {[%clk 0:00:37]}  Nc5 {[%clk 0:00:06]} 33. Ra7+ {[%clk 0:00:36]}  Kf6 {[%clk 0:00:07]} 34. Rc7 {[%clk 0:00:36]}  Na4 {[%clk 0:00:06]} 35. Rxc6+ {[%clk 0:00:36]}  Ke5 {[%clk 0:00:07]} 36. Kd2 {[%clk 0:00:34]}  g5 {[%clk 0:00:05]} 37. Rc7 {[%clk 0:00:34]}  h5 {[%clk 0:00:05]} 38. Rb7 {[%clk 0:00:34]}  Ke4 {[%clk 0:00:03]} 39. Rxb5 {[%clk 0:00:33]}  Kf3 {[%clk 0:00:04]} 40. Rxg5 {[%clk 0:00:32]}  Nb2 {[%clk 0:00:02]} 41. Rxh5 {[%clk 0:00:31]}  Nd3 {[%clk 0:00:03]} 42. Rh4 {[%clk 0:00:31]}  Nxf2 {[%clk 0:00:02]} 43. Rxc4 {[%clk 0:00:31]}  Kxg3 {[%clk 0:00:03]} 44. h4 {[%clk 0:00:31]}  Ng4 {[%clk 0:00:02]} 45. Rxg4+ {[%clk 0:00:31]}  Kxg4 {[%clk 0:00:02]} 46. c4 {[%clk 0:00:32]}  Kxh4 {[%clk 0:00:03]} 47. c5 {[%clk 0:00:31]}  Kg5 {[%clk 0:00:04]} 48. c6 {[%clk 0:00:32]}  Kf6 {[%clk 0:00:05]} 49. c7 {[%clk 0:00:32]} 1-0


[Site "https://www.chess.com"]